Workbook

Sheet 업무여유도 양식
A2: 업무여유도
A3: ( 참여분야 : 사업책임기술자, 정명화)
A4: (중복도 산정 기준일) | C4: 2016-09-28
A5: No. | B5: 용역명 | C5: 총사업금액 (백만원) | D5: 착수일 | E5: 준공일 | F5: 잔여 일수 | G5: 총계약 일수 | H5: 중복일수 (개월)
A6: 1 | B6: 완주 농공단지 조성사업 개발계획 및 실시설계 용역 | C6: 970 | D6: 2016-06-07 | E6: 2017-04-02 | F6: =E6-$C$4+1 -> 187 | G6: =E6-D6+1 -> 300 | H6: =ROUNDDOWN(F6/30,1) -> 6.2
B7: 계 | H7: =SUM(H6:H6) -> 6.2
A9: ( 참여분야 : 도시계획분야 책임기술자, 이재홍)
A10: (중복도 산정 기준일) | C10: =$C$4 -> 2016-09-28
A11: No. | B11: 용역명 | C11: 총사업금액 (백만원) | D11: 착수일 | E11: 준공일 | F11: 잔여 일수 | G11: 총계약 일수 | H11: 중복일수 (개월)
A12: 1 | B12: 서울시 생활권계획 수립 용역(동북권) | C12: 1793 | D12: 2013-12-02 | E12: 2016-12-31 | F12: =E12-$C$4+1 -> 95 | G12: =E12-D12+1 -> 1126 | H12: =ROUNDDOWN(F12/30,1) -> 3.1
A13: 2 | B13: 칠곡 중리지구 도시개발사업 조사설계용역 | C13: 753 | D13: 2015-07-23 | E13: 2017-01-22 | F13: =E13-$C$4+1 -> 117 | G13: =E13-D13+1 -> 550 | H13: =ROUNDDOWN(F13/30,1) -> 3.9
A14: 3 | B14: 광주광역시 하남3지구 도시개발사업 환지처분 용역 | C14: 1441 | D14: 2016-08-05 | E14: 2017-08-04 | F14: =E14-$C$4+1 -> 311 | G14: =E14-D14+1 -> 365 | H14: =ROUNDDOWN(F14/30,1) -> 10.3
B15: 계 | H15: =SUM(H12:H14) -> 17.3
A17: ( 참여분야 : 도로공항분야 책임기술자, 박종오)
A18: (중복도 산정 기준일) | C18: =$C$4 -> 2016-09-28
A19: No. | B19: 용역명 | C19: 총사업금액 (백만원) | D19: 착수일 | E19: 준공일 | F19: 잔여 일수 | G19: 총계약 일수 | H19: 중복일수 (개월)
A20: 1 | B20: "해당사항 없음"
B21: 계 | H21: =SUM(H20:H20) -> 0
A23: ( 참여분야 : 토질지질분야 책임기술자, 박종천)
A24: (중복도 산정 기준일) | C24: =$C$4 -> 2016-09-28
A25: No. | B25: 용역명 | C25: 총사업금액 (백만원) | D25: 착수일 | E25: 준공일 | F25: 잔여 일수 | G25: 총계약 일수 | H25: 중복일수 (개월)
A26: 1 | B26: "해당사항 없음"
B27: 계 | H27: =SUM(H26) -> 0
A29: ( 참여분야 :토목구조분야 책임기술자, 노용수)
A30: (중복도 산정 기준일) | C30: =$C$4 -> 2016-09-28
A31: No. | B31: 용역명 | C31: 총사업금액 (백만원) | D31: 착수일 | E31: 준공일 | F31: 잔여 일수 | G31: 총계약 일수 | H31: 중복일수 (개월)
A32: 1 | B32: 대전도안 갑천지구 친수구역 조성사업 실시설계용역 | C32: 910 | D32: 2016-04-04 | E32: 2017-03-19 | F32: =E32-$C$4+1 -> 173 | G32: =E32-D32+1 -> 350 | H32: =ROUNDDOWN(F32/30,1) -> 5.7
A33: 2 | B33: 안심뉴타운도시개발사업 기본 및 실시설계용역 | C33: 982 | D33: 2016-04-11 | E33: 2019-04-15 | F33: =E33-$C$4+1 -> 930 | G33: =E33-D33+1 -> 1100 | H33: =ROUNDDOWN(F33/30,1) -> 31
A34: 3 | B34: 안성시 중소기업 일반 산업단지 개발계획(변경) 및 실시계획 용역 | C34: 1438 | D34: 2016-04-25 | E34: 2017-04-24 | F34: =E34-$C$4+1 -> 209 | G34: =E34-D34+1 -> 365 | H34: =ROUNDDOWN(F34/30,1) -> 6.9
A35: 4 | B35: 율촌산단 배후택지 개발계획 및 실시설계용역 | C35: 1328 | D35: 2016-04-27 | E35: 2017-04-26 | F35: =E35-$C$4+1 -> 211 | G35: =E35-D35+1 -> 365 | H35: =ROUNDDOWN(F35/30,1) -> 7
B36: 계 | H36: =SUM(H32:H35) -> 50.6
A38: ( 참여분야 : 상하수도분야 책임기술자, 윤동열)
A39: (중복도 산정 기준일) | C39: =$C$4 -> 2016-09-28
A40: No. | B40: 용역명 | C40: 총사업금액 (백만원) | D40: 착수일 | E40: 준공일 | F40: 잔여 일수 | G40: 총계약 일수 | H40: 중복일수 (개월)
A41: 1 | B41: 과천주암 기업형임대주택 공급촉진지구 조사설계용역 | C41: 2455 | D41: 2016-05-30 | E41: 2018-01-29 | F41: =E41-$C$4+1 -> 489 | G41: =E41-D41+1 -> 610 | H41: =ROUNDDOWN(F41/30,1) -> 16.3
A42: 2 | B42: 수원 군 공항 이전 민간사업자 선정 및 이전후보지 기본 계획 수립용역 | C42: 553 | D42: 2015-12-31 | E42: 2017-03-30 | F42: =E42-$C$4+1 -> 184 | G42: =E42-D42+1 -> 456 | H42: =ROUNDDOWN(F42/30,1) -> 6.1
B43: 계 | H43: =SUM(H41:H42) -> 22.4
